bitfinex-derivatives/quotes_BTCF0:USTF0_20250315
["timestamp","ask_amount","ask_price","bid_price","bid_amount"]
[1742012712823,0.0643,84348.0,84347.0,0.8232554]
[1742012713220,0.0643,84348.0,84347.0,0.83532487]
[1742012714731,0.0693,84348.0,84347.0,0.83532487]
[1742012716335,0.0693,84348.0,84347.0,1.10532487]
[1742012716534,0.0693,84348.0,84347.0,1.36672487]
[1742012716833,0.0693,84348.0,84347.0,1.40672487]
[1742012717631,0.0693,84348.0,84347.0,1.13672487]
[1742012717934,0.0693,84348.0,84347.0,1.40672487]
[1742012718628,0.0693,84348.0,84347.0,1.13672487]
[1742012718832,0.0693,84348.0,84347.0,1.39672487]
[1742012719030,0.0643,84348.0,84347.0,1.39672487]
[1742012719230,0.0693,84348.0,84347.0,0.8546554]
[1742012719433,0.0693,84348.0,84347.0,1.4046554]
[1742012719636,0.0693,84348.0,84347.0,0.8546554]
[1742012719837,0.0693,84348.0,84347.0,0.86628792]
[1742012721142,0.0693,84348.0,84347.0,1.12628792]
[1742012721337,0.0693,84348.0,84347.0,1.38628792]
[1742012721732,0.0693,84348.0,84347.0,1.34628792]
[1742012721933,0.0693,84348.0,84347.0,1.35628792]
[1742012722339,0.0693,84348.0,84347.0,1.34628792]
[1742012722540,0.0693,84348.0,84347.0,1.33628792]
[1742012722841,0.0693,84348.0,84347.0,0.86628792]
[1742012723031,0.0693,84348.0,84347.0,1.34628792]
[1742012723234,0.0693,84348.0,84347.0,1.38628792]
[1742012723736,0.0693,84348.0,84347.0,0.86628792]
[1742012723942,0.0693,84348.0,84347.0,1.33628792]
[1742012724131,0.0693,84348.0,84347.0,1.39628792]
[1742012724638,0.0693,84348.0,84347.0,0.86628792]
[1742012724834,0.0693,84348.0,84347.0,1.39628792]
[1742012725343,0.0693,84348.0,84347.0,1.11628792]
[1742012725529,0.0693,84348.0,84347.0,1.34628792]
[1742012725838,0.0693,84348.0,84347.0,0.86628792]
[1742012726141,0.0693,84348.0,84347.0,1.37628792]
[1742012726439,0.0693,84348.0,84347.0,1.34628792]
[1742012727639,0.0693,84348.0,84347.0,1.36628792]
[1742012728134,0.0693,84348.0,84347.0,1.3946554]
[1742012728333,0.0693,84348.0,84347.0,1.3446554]
[1742012728535,0.0693,84348.0,84347.0,0.8546554]
[1742012728735,0.0693,84348.0,84347.0,1.3446554]
[1742012728941,0.0693,84348.0,84347.0,1.3846554]
[1742012729441,0.0693,84348.0,84347.0,0.8546554]
[1742012729642,0.0693,84348.0,84347.0,1.3446554]
[1742012729839,0.0693,84348.0,84347.0,1.3846554]
[1742012730138,0.0693,84348.0,84347.0,1.3746554]
[1742012730537,0.0693,84348.0,84347.0,1.3346554]
[1742012731540,0.0693,84348.0,84347.0,1.3646554]
[1742012731944,0.0693,84348.0,84347.0,1.37641569]
[1742012732344,0.0693,84348.0,84347.0,1.38641569]
[1742012732537,0.0693,84348.0,84347.0,0.86641569]
[1742012732735,0.0693,84348.0,84347.0,1.13641569]
[1742012733741,0.0693,84348.0,84347.0,0.86641569]
[1742012734136,0.0693,84348.0,84347.0,1.12641569]
[1742012734354,0.0693,84348.0,84347.0,1.09641569]
[1742012734545,0.0693,84348.0,84347.0,1.14641569]
[1742012735248,0.0693,84348.0,84347.0,0.86641569]
[1742012735449,0.0693,84348.0,84347.0,1.38641569]
[1742012736152,0.0693,84348.0,84347.0,1.39641569]
[1742012736350,0.0693,84348.0,84347.0,1.38641569]
[1742012736852,0.0693,84348.0,84347.0,1.40641569]
[1742012737652,0.0693,84348.0,84347.0,0.86641569]
[1742012737853,0.0693,84348.0,84347.0,1.36501569]
[1742012738448,0.0643,84348.0,84347.0,1.32501569]
[1742012738649,0.0693,84348.0,84347.0,1.32501569]
[1742012739058,0.0693,84348.0,84347.0,0.83501569]
[1742012739251,0.0693,84348.0,84347.0,1.08501569]
[1742012739751,0.0693,84348.0,84347.0,0.83501569]
[1742012739947,0.0693,84348.0,84347.0,1.08501569]
[1742012740255,0.0693,84348.0,84347.0,0.83501569]
[1742012740457,0.0693,84348.0,84347.0,1.36501569]
[1742012740655,0.0693,84348.0,84347.0,0.83501569]
[1742012741152,0.0693,84348.0,84347.0,1.11501569]
[1742012741347,0.0693,84348.0,84347.0,1.07501569]
[1742012742257,0.0693,84348.0,84347.0,0.83501569]
[1742012743270,0.0693,84348.0,84347.0,1.07501569]
[1742012743465,0.0693,84348.0,84347.0,1.33501569]
[1742012743666,0.0693,84348.0,84347.0,1.07501569]
[1742012743864,0.0693,84348.0,84347.0,0.83501569]
[1742012744064,0.0693,84348.0,84347.0,1.11501569]
[1742012745274,0.0693,84348.0,84347.0,1.07501569]
[1742012745872,0.0693,84348.0,84347.0,0.83501569]
[1742012748781,0.0693,84348.0,84347.0,0.8232554]
[1742012749180,0.187854,84348.0,84347.0,0.5432554]
[1742012749389,0.187854,84348.0,84347.0,0.4793554]
[1742012756077,0.187854,84348.0,84347.0,0.5440554]
[1742012757181,0.187854,84348.0,84347.0,0.8140554]
[1742012757684,0.187854,84348.0,84347.0,0.8240554]
[1742012757981,0.187854,84348.0,84347.0,0.4132554]
[1742012758283,0.187854,84348.0,84347.0,0.1832554]
[1742012758486,0.187854,84348.0,84347.0,0.4332554]
[1742012758674,0.187854,84348.0,84347.0,0.1832554]
[1742012758986,0.187854,84348.0,84347.0,0.4232554]
[1742012759278,0.187854,84348.0,84347.0,0.1832554]
[1742012759681,0.187854,84348.0,84347.0,0.1505554]
[1742012760578,0.1185667,84339.0,84338.0,0.4793656]
[1742012760884,0.1185667,84339.0,84338.0,0.1185681]
[1742012761091,0.2131667,84339.0,84338.0,0.1185681]
[1742012761276,0.2131667,84339.0,84338.0,0.3985681]
[1742012761589,0.2131667,84339.0,84338.0,0.1185681]
[1742012761884,0.22703728,84339.0,84338.0,0.1185681]
[1742012763083,0.22703728,84339.0,84338.0,0.1810681]
[1742012772996,0.22703728,84339.0,84338.0,0.4610681]
[1742012773193,0.22703728,84339.0,84338.0,0.1810681]
[1742012774997,0.22703728,84339.0,84338.0,0.4210681]
[1742012775293,0.22703728,84339.0,84338.0,0.4310681]
[1742012776209,0.22703728,84339.0,84338.0,0.1810681]
[1742012776990,0.22703728,84339.0,84338.0,0.4310681]
[1742012776991,0.19613728,84339.0,84338.0,0.4310681]
[1742012777193,0.19613728,84339.0,84338.0,0.1810681]
[1742012777394,0.19613728,84339.0,84338.0,0.4410681]
[1742012777600,0.19613728,84339.0,84338.0,0.4310681]
[1742012777897,0.19613728,84339.0,84338.0,0.1810681]
[1742012778097,0.19613728,84339.0,84338.0,0.4610681]
[1742012778297,0.19613728,84339.0,84338.0,0.1810681]
[1742012778499,0.19613728,84339.0,84338.0,0.4110681]
[1742012778698,0.19613728,84339.0,84338.0,0.1810681]
[1742012778899,0.19613728,84339.0,84338.0,0.4210681]
[1742012779196,0.19613728,84339.0,84338.0,0.4610681]
[1742012779401,0.19613728,84339.0,84338.0,0.1810681]
[1742012781903,0.19613728,84339.0,84338.0,0.4410681]
[1742012782396,0.19613728,84339.0,84338.0,0.1810681]
[1742012782602,0.19613728,84339.0,84338.0,0.4410681]
[1742012783097,0.19613728,84339.0,84338.0,0.4210681]
[1742012783492,0.19613728,84339.0,84338.0,0.4610681]
[1742012784094,0.19613728,84339.0,84338.0,0.1810681]
[1742012784297,0.19613728,84339.0,84338.0,0.4610681]
[1742012784587,0.16443728,84339.0,84338.0,0.4610681]
[1742012784793,0.16443728,84339.0,84338.0,0.4210681]
[1742012785095,0.16443728,84339.0,84338.0,0.4410681]
[1742012785298,0.19593728,84339.0,84338.0,0.4410681]
[1742012785698,0.19593728,84339.0,84338.0,0.4210681]
[1742012786499,0.19593728,84339.0,84338.0,0.4410681]
[1742012786804,0.19593728,84339.0,84338.0,0.4510681]
[1742012787301,0.19593728,84339.0,84338.0,0.4210681]
[1742012788500,0.19593728,84339.0,84338.0,0.1810681]
[1742012788700,0.19593728,84339.0,84338.0,0.4310681]
[1742012788901,0.19793728,84339.0,84338.0,0.4410681]
[1742012790100,0.19793728,84339.0,84338.0,0.1810681]
[1742012790401,0.19793728,84339.0,84338.0,0.4510681]
[1742012790601,0.19793728,84339.0,84338.0,0.4310681]
[1742012790795,0.19793728,84339.0,84338.0,0.4410681]
[1742012791103,0.19793728,84339.0,84338.0,0.1810681]
[1742012791289,0.19793728,84339.0,84338.0,0.4110681]
[1742012791490,0.19793728,84339.0,84338.0,0.1810681]
[1742012791690,0.19793728,84339.0,84338.0,0.4310681]
[1742012792292,0.19793728,84339.0,84338.0,0.1810681]
[1742012792605,0.19793728,84339.0,84338.0,0.4310681]
[1742012792806,0.19793728,84339.0,84338.0,0.1810681]
[1742012793003,0.19793728,84339.0,84338.0,0.4610681]
[1742012793701,0.19793728,84339.0,84338.0,0.4210681]
[1742012793899,0.19793728,84339.0,84338.0,0.4610681]
[1742012794301,0.13443728,84339.0,84338.0,0.4610681]
[1742012794501,0.13443728,84339.0,84338.0,0.1810681]
[1742012794704,0.1225667,84339.0,84338.0,0.4510681]
[1742012795107,0.1225667,84339.0,84338.0,0.4610681]
[1742012795413,0.1225667,84339.0,84338.0,0.47309454]
[1742012795618,0.1225667,84339.0,84338.0,0.4610681]
[1742012796311,0.1225667,84339.0,84338.0,0.1810681]
[1742012796515,0.1225667,84339.0,84338.0,0.4110681]
[1742012796710,0.1225667,84339.0,84338.0,0.4410681]
[1742012797215,0.1531667,84339.0,84338.0,0.4110681]
[1742012798519,0.1531667,84339.0,84338.0,0.4610681]
[1742012799005,0.1531667,84339.0,84338.0,0.1810681]
[1742012799206,0.1531667,84339.0,84338.0,0.4510681]
[1742012799408,0.1531667,84339.0,84338.0,0.1810681]
[1742012799608,0.1531667,84339.0,84338.0,0.4610681]
[1742012800014,0.1849667,84339.0,84338.0,0.1810681]
[1742012800218,0.1849667,84339.0,84338.0,0.4410681]
[1742012802519,0.1849667,84339.0,84338.0,0.4310681]
[1742012803116,0.1849667,84339.0,84338.0,0.4710681]
[1742012805223,0.1849667,84339.0,84338.0,0.4110681]
[1742012806426,0.1849667,84339.0,84338.0,0.1810681]
[1742012806626,0.1849667,84339.0,84338.0,0.4410681]
[1742012807537,0.1849667,84339.0,84338.0,0.4210681]
[1742012807723,0.1849667,84339.0,84338.0,0.4310681]
[1742012808728,0.1849667,84339.0,84338.0,0.1810681]
[1742012808926,0.1849667,84339.0,84338.0,0.4210681]
[1742012809122,0.1849667,84339.0,84338.0,0.4610681]
[1742012809522,0.1849667,84339.0,84338.0,0.1810681]
[1742012809728,0.1849667,84339.0,84338.0,0.4210681]
[1742012809934,0.1849667,84339.0,84338.0,0.1810681]
[1742012810127,0.1849667,84339.0,84338.0,0.4710681]
[1742012810837,0.1849667,84339.0,84338.0,0.4210681]
[1742012811136,0.1849667,84339.0,84338.0,0.1810681]
[1742012811334,0.1849667,84339.0,84338.0,0.4510681]
[1742012811638,0.1849667,84339.0,84338.0,0.4710681]
[1742012812028,0.1849667,84339.0,84338.0,0.4410681]
[1742012813536,0.1849667,84339.0,84338.0,0.4310681]
[1742012813723,0.1849667,84339.0,84338.0,0.4210681]
[1742012814438,0.1849667,84339.0,84338.0,0.4310681]
[1742012814923,0.1849667,84339.0,84338.0,0.1810681]
[1742012815324,0.1849667,84339.0,84338.0,0.4710681]
[1742012815527,0.1849667,84339.0,84338.0,0.4310681]
[1742012815835,0.1849667,84339.0,84338.0,0.4510681]
[1742012817036,0.1849667,84339.0,84338.0,0.4310681]
[1742012817237,0.1849667,84339.0,84338.0,0.1810681]
[1742012817431,0.1849667,84339.0,84338.0,0.4610681]
[1742012817636,0.1849667,84339.0,84338.0,0.4410681]
[1742012817839,0.1849667,84339.0,84338.0,0.1810681]
[1742012818036,0.1849667,84339.0,84338.0,0.4610681]
[1742012818539,0.1849667,84339.0,84338.0,0.4110681]
[1742012818730,0.1849667,84339.0,84338.0,0.4610681]
[1742012818932,0.1849667,84339.0,84338.0,0.4510681]
[1742012819239,0.1849667,84339.0,84338.0,0.4210681]
[1742012819733,0.1849667,84339.0,84338.0,0.4510681]
[1742012820131,0.1849667,84339.0,84338.0,0.1810681]
[1742012820337,0.1849667,84339.0,84338.0,0.4510681]
[1742012821443,0.1849667,84339.0,84338.0,0.4410681]
[1742012822339,0.1849667,84339.0,84338.0,0.1810681]
[1742012822539,0.1849667,84339.0,84338.0,0.4510681]
[1742012822938,0.1849667,84339.0,84338.0,0.4210681]
[1742012823242,0.1849667,84339.0,84338.0,0.4410681]
[1742012824133,0.1849667,84339.0,84338.0,0.4610681]
[1742012824340,0.1849667,84339.0,84338.0,0.4110681]
[1742012824841,0.1849667,84339.0,84338.0,0.4610681]
[1742012825939,0.1849667,84339.0,84338.0,0.1810681]
[1742012826145,0.1849667,84339.0,84338.0,0.4610681]
[1742012826735,0.1849667,84339.0,84338.0,0.4110681]
[1742012827445,0.1849667,84339.0,84338.0,0.4710681]
[1742012827942,0.1849667,84339.0,84338.0,0.1810681]
[1742012828143,0.1849667,84339.0,84338.0,0.4410681]
[1742012828339,0.1849667,84339.0,84338.0,0.1810681]
[1742012828542,0.1849667,84339.0,84338.0,0.4210681]
[1742012828946,0.1849667,84339.0,84338.0,0.4410681]
[1742012829244,0.1849667,84339.0,84338.0,0.4310681]
[1742012829441,0.1849667,84339.0,84338.0,0.1810681]
[1742012829642,0.1849667,84339.0,84338.0,0.4310681]
[1742012830451,0.1849667,84339.0,84338.0,0.4210681]
[1742012830747,0.1849667,84339.0,84338.0,0.4110681]
[1742012831046,0.2175667,84339.0,84338.0,0.4110681]
[1742012831441,0.2175667,84339.0,84338.0,0.4510681]
[1742012832238,0.2175667,84339.0,84338.0,0.4310681]
[1742012832446,0.2175667,84339.0,84338.0,0.1810681]
[1742012832646,0.2175667,84339.0,84338.0,0.4410681]
[1742012833144,0.1849667,84339.0,84338.0,0.4410681]
[1742012833451,0.1849667,84339.0,84338.0,0.4510681]
[1742012834342,0.1849667,84339.0,84338.0,0.1810681]
[1742012834645,0.1849667,84339.0,84338.0,0.4510681]
[1742012835038,0.1849667,84339.0,84338.0,0.4410681]
[1742012835242,0.1849667,84339.0,84338.0,0.4610681]
[1742012835838,0.1849667,84339.0,84338.0,0.4510681]
[1742012836755,0.1849667,84339.0,84338.0,0.4210681]
[1742012837053,0.1849667,84339.0,84338.0,0.4610681]
[1742012837250,0.1849667,84339.0,84338.0,0.1810681]
[1742012837446,0.1849667,84339.0,84338.0,0.4510681]
[1742012837954,0.1849667,84339.0,84338.0,0.4210681]
[1742012838354,0.1849667,84339.0,84338.0,0.4110681]
[1742012839254,0.1849667,84339.0,84338.0,0.1810681]
[1742012839455,0.1849667,84339.0,84338.0,0.4410681]
[1742012840057,0.1849667,84339.0,84338.0,0.4610681]
[1742012840844,0.1849667,84339.0,84338.0,0.4210681]
[1742012841246,0.1849667,84339.0,84338.0,0.4510681]
[1742012841855,0.1849667,84339.0,84338.0,0.4410681]
[1742012842050,0.1849667,84339.0,84338.0,0.4110681]
[1742012842255,0.1849667,84339.0,84338.0,0.4510681]
[1742012842551,0.1849667,84339.0,84338.0,0.1810681]
[1742012842955,0.1849667,84339.0,84338.0,0.4510681]
[1742012843147,0.1849667,84339.0,84338.0,0.1810681]
[1742012843349,0.1849667,84339.0,84338.0,0.4610681]
[1742012843750,0.1849667,84339.0,84338.0,0.4510681]
[1742012844155,0.1849667,84339.0,84338.0,0.1810681]
[1742012844359,0.1849667,84339.0,84338.0,0.4510681]
[1742012844860,0.1849667,84339.0,84338.0,0.4410681]
[1742012845352,0.1849667,84339.0,84338.0,0.4310681]
[1742012845753,0.1849667,84339.0,84338.0,0.1810681]
[1742012845956,0.1849667,84339.0,84338.0,0.4710681]
[1742012847853,0.1849667,84339.0,84338.0,0.4310681]
[1742012848251,0.1849667,84339.0,84338.0,0.1810681]
[1742012848558,0.1849667,84339.0,84338.0,0.4310681]
[1742012848855,0.1849667,84339.0,84338.0,0.4210681]
[1742012849359,0.1849667,84339.0,84338.0,0.4110681]
[1742012849954,0.1849667,84339.0,84338.0,0.4210681]
[1742012851758,0.1849667,84339.0,84338.0,0.1810681]
[1742012851957,0.1849667,84339.0,84338.0,0.4310681]
[1742012853258,0.1849667,84339.0,84338.0,0.4110681]
[1742012853851,0.1849667,84339.0,84338.0,0.4210681]
[1742012854052,0.1849667,84339.0,84338.0,0.1810681]
[1742012854658,0.1849667,84339.0,84338.0,0.4610681]
[1742012855054,0.1849667,84339.0,84338.0,0.4110681]
[1742012855259,0.1849667,84339.0,84338.0,0.4210681]
[1742012855455,0.1849667,84339.0,84338.0,0.6710681]
[1742012855860,0.1849667,84339.0,84338.0,0.7110681]
[1742012856165,0.1849667,84339.0,84338.0,0.7010681]
[1742012856355,0.1849667,84339.0,84338.0,0.7110681]
[1742012856549,0.1849667,84339.0,84338.0,0.6710681]
[1742012857156,0.1849667,84339.0,84338.0,0.6810681]
[1742012857361,0.1531667,84339.0,84338.0,0.7210681]
[1742012857557,0.1531667,84339.0,84338.0,0.6910681]
[1742012857962,0.1531667,84339.0,84338.0,0.7210681]
[1742012858158,0.1531667,84339.0,84338.0,0.1810681]
[1742012858469,0.1531667,84339.0,84338.0,0.6710681]
[1742012858662,0.1531667,84339.0,84338.0,0.9410681]
[1742012858864,0.1531667,84339.0,84338.0,0.6910681]
[1742012859064,0.1225667,84339.0,84338.0,0.70284942]
[1742012859260,0.1225667,84339.0,84338.0,0.98284942]
[1742012859970,0.1225667,84339.0,84338.0,0.94284942]
[1742012860970,0.1225667,84339.0,84338.0,0.71284942]
[1742012861167,0.1225667,84339.0,84338.0,0.97284942]
[1742012862872,0.1225667,84339.0,84338.0,0.91284942]
[1742012863867,0.1225667,84339.0,84338.0,0.94284942]
[1742012864258,0.1225667,84339.0,84338.0,0.93284942]
[1742012865570,0.0592775,84348.0,84342.0,0.0592807]
[1742012865867,0.00060001,84352.0,84350.0,0.1185498]
[1742012866067,0.01211598,84355.0,84352.0,0.1185484]
[1742012866068,0.0301,84353.0,84352.0,0.1185484]
[1742012866267,0.1486484,84353.0,84352.0,0.6993484]
[1742012866777,0.1806484,84353.0,84352.0,0.6993484]
[1742012867575,0.1185447,84355.0,84354.0,0.177817]
[1742012867876,0.1486442,84355.0,84354.0,0.687817]
[1742012868068,0.00177889,84356.0,84355.0,0.1185442]
[1742012868369,0.00177889,84356.0,84355.0,0.63048667]
[1742012869983,0.004,84356.0,84355.0,0.63048667]
[1742012870566,0.1225428,84356.0,84355.0,0.63048667]
[1742012871270,0.009,84356.0,84355.0,0.63048667]
[1742012872078,0.009,84356.0,84355.0,0.89048667]
[1742012872373,0.009,84356.0,84355.0,0.82048667]
[1742012872575,0.13570837,84365.0,84362.0,0.1185344]
[1742012872777,0.13570837,84365.0,84362.0,1.1693344]
[1742012873078,0.13570837,84365.0,84362.0,1.2493344]
[1742012873578,0.13570837,84365.0,84362.0,1.2293344]
[1742012873963,0.13570837,84365.0,84362.0,1.2393344]
[1742012874163,0.13570837,84365.0,84362.0,0.9793344]
[1742012874462,0.13570837,84365.0,84362.0,1.2493344]
[1742012874667,0.12654608,84363.0,84362.0,1.2493344]
[1742012874872,0.12654608,84363.0,84362.0,1.2593344]
[1742012875382,0.0645,84370.0,84369.0,0.1185245]
[1742012875677,0.1830231,84370.0,84369.0,0.4793245]
[1742012875877,0.1830231,84370.0,84369.0,0.9893245]
[1742012876477,0.1830231,84370.0,84369.0,0.9493245]
[1742012876880,0.1830231,84370.0,84369.0,0.4793245]
[1742012877075,0.1830231,84370.0,84369.0,0.49093632]
[1742012877281,0.1830231,84370.0,84369.0,0.94093632]
[1742012877674,0.0645,84370.0,84369.0,0.94093632]
[1742012877978,0.1830231,84370.0,84369.0,0.94093632]
[1742012878186,0.1830231,84370.0,84369.0,0.49093632]
[1742012878675,0.0316,84370.0,84369.0,1.07093632]
[1742012879276,0.0316,84370.0,84369.0,1.06093632]
[1742012879482,0.00017786,84371.0,84370.0,0.1185231]
[1742012879682,0.2097716,84377.0,84376.0,0.1185133]
[1742012879983,0.2410716,84377.0,84376.0,0.9993133]
[1742012880181,0.2410716,84377.0,84376.0,1.2917133]
[1742012880571,0.2410716,84377.0,84376.0,1.0317133]
[1742012881075,0.2430716,84377.0,84376.0,1.0317133]
[1742012881274,0.2430716,84377.0,84376.0,1.3117133]
[1742012881484,0.2430716,84377.0,84376.0,1.0317133]
[1742012881678,0.2430716,84377.0,84376.0,0.5117133]
[1742012881979,0.2430716,84377.0,84376.0,1.2817133]
[1742012882284,0.2430716,84377.0,84376.0,1.2517133]
[1742012882485,0.2430716,84377.0,84376.0,1.3620133]
[1742012882686,0.2430716,84377.0,84376.0,0.7012133]
[1742012882886,0.2430716,84377.0,84376.0,0.6812133]
[1742012883476,0.2430716,84377.0,84376.0,0.1812133]
[1742012883679,0.2430716,84377.0,84376.0,0.7012133]
[1742012883877,0.2430716,84377.0,84376.0,0.9312133]
[1742012884085,0.2430716,84377.0,84376.0,0.7012133]
[1742012884387,0.2430716,84377.0,84376.0,1.0620133]
[1742012884589,0.2430716,84377.0,84376.0,1.3320133]
[1742012885181,0.2430716,84377.0,84376.0,1.2820133]
[1742012885382,0.2430716,84377.0,84376.0,1.0520133]
[1742012885581,0.1245569,84377.0,84376.0,1.3120133]
[1742012885784,0.1525133,84377.0,84376.0,1.0520133]
[1742012885980,0.1505133,84377.0,84376.0,1.3220133]
[1742012886183,0.1525133,84377.0,84376.0,1.0520133]
[1742012886781,0.1525133,84377.0,84376.0,1.3120133]
[1742012886982,0.1525133,84377.0,84376.0,1.0520133]
[1742012887374,0.1525133,84377.0,84376.0,0.6912133]
[1742012887583,0.1841133,84377.0,84376.0,0.1812133]
[1742012887785,0.2150133,84377.0,84376.0,0.1812133]
[1742012889585,0.2130133,84377.0,84376.0,0.1812133]
[1742012889786,0.2150133,84377.0,84376.0,0.1812133]
[1742012890192,0.1841133,84377.0,84376.0,0.6812133]
[1742012890388,0.1841133,84377.0,84376.0,0.7112133]
[1742012890594,0.1841133,84377.0,84376.0,0.6912133]
[1742012890994,0.1841133,84377.0,84376.0,0.7112133]
[1742012891194,0.1841133,84377.0,84376.0,0.7012133]
[1742012891396,0.1841133,84377.0,84376.0,0.6712133]
[1742012891690,0.1841133,84377.0,84376.0,0.6612133]
[1742012892096,0.1841133,84377.0,84376.0,0.7212133]
[1742012892293,0.1841133,84377.0,84376.0,0.1812133]
[1742012892500,0.1841133,84377.0,84376.0,0.4712133]
[1742012893597,0.1841133,84377.0,84376.0,0.1812133]
[1742012893891,0.1841133,84377.0,84376.0,0.4412133]
[1742012894095,0.1841133,84377.0,84376.0,0.1812133]
[1742012895896,0.1841133,84377.0,84376.0,0.7012133]
[1742012896199,0.1841133,84377.0,84376.0,0.7112133]
[1742012896597,0.1841133,84377.0,84376.0,0.5420133]
[1742012896903,0.034,84377.0,84376.0,1.3320133]
[1742012897105,0.1205133,84377.0,84376.0,1.3320133]
[1742012897401,0.1205133,84377.0,84376.0,1.0520133]
[1742012897705,0.002,84377.0,84376.0,1.0520133]
[1742012898199,0.1519133,84377.0,84376.0,1.0520133]
[1742012898392,0.1825133,84377.0,84376.0,0.8120133]
[1742012898792,0.1825133,84377.0,84376.0,0.5420133]
[1742012901097,0.1825133,84377.0,84376.0,0.7720133]
[1742012901388,0.1825133,84377.0,84376.0,0.5420133]
[1742012902606,0.1825133,84377.0,84376.0,0.7820133]
[1742012902806,0.1825133,84377.0,84376.0,1.0220133]
[1742012903195,0.1825133,84377.0,84376.0,1.0120133]
[1742012903401,0.1825133,84377.0,84376.0,0.8020133]
[1742012903792,0.1825133,84377.0,84376.0,1.0020133]
[1742012904306,0.1825133,84377.0,84376.0,1.0320133]
[1742012904600,0.1825133,84377.0,84376.0,0.5420133]
[1742012904999,0.1825133,84377.0,84376.0,1.0320133]
[1742012905192,0.1825133,84377.0,84376.0,1.0620133]
[1742012905491,0.1825133,84377.0,84376.0,0.8220133]
[1742012905690,0.1825133,84377.0,84376.0,1.0520133]
[1742012906305,0.1825133,84377.0,84376.0,0.8120133]
[1742012906501,0.1825133,84377.0,84376.0,0.5420133]
[1742012906807,0.1825133,84377.0,84376.0,0.8020133]
[1742012907310,0.1825133,84377.0,84376.0,1.0420133]
[1742012907517,0.1825133,84377.0,84376.0,1.0620133]
[1742012908222,0.1825133,84377.0,84376.0,1.0320133]
[1742012908515,0.064,84377.0,84376.0,1.2920133]
[1742012908717,0.0334,84377.0,84376.0,1.3320133]
[1742012908920,0.0334,84377.0,84376.0,1.3020133]
[1742012909930,0.0334,84377.0,84376.0,1.3520133]
[1742012910225,0.002,84377.0,84376.0,1.3120133]
[1742012910721,0.002,84377.0,84376.0,1.3220133]
[1742012911117,0.035,84377.0,84376.0,1.3420133]
[1742012911318,0.035,84377.0,84376.0,1.3120133]
[1742012912415,0.035,84377.0,84376.0,0.8120133]
[1742012912727,0.035,84377.0,84376.0,1.3020133]
[1742012913021,0.002,84377.0,84376.0,1.3020133]
[1742012913221,0.00177826,84386.0,84384.0,0.1185035]
[1742012913428,0.00177826,84386.0,84384.0,1.3050035]
[1742012913612,0.00177826,84386.0,84385.0,0.1185021]
[1742012913818,0.1184896,84394.0,84393.0,0.1184908]
[1742012914018,0.1184896,84394.0,84393.0,1.2992908]
[1742012914227,0.0304,84395.0,84394.0,0.1184894]
[1742012914524,0.0304,84395.0,84394.0,0.9819894]
[1742012914726,0.0304,84395.0,84394.0,0.99369276]
[1742012915322,0.0304,84395.0,84394.0,0.95369276]
[1742012915520,0.0324,84395.0,84394.0,0.95369276]
[1742012915916,0.0324,84395.0,84394.0,0.69369276]
[1742012916329,0.0324,84395.0,84394.0,0.68369276]
[1742012916528,0.0324,84395.0,84394.0,0.19369276]
[1742012916832,0.0324,84395.0,84394.0,0.75369276]
[1742012917029,0.0324,84395.0,84394.0,1.01369276]
[1742012917329,0.00017776,84403.0,84402.0,0.1184782]
[1742012917524,0.00017776,84403.0,84402.0,1.1234782]
[1742012917922,0.00017776,84403.0,84402.0,0.8534782]
[1742012920133,0.00017776,84403.0,84402.0,1.4034782]
[1742012920523,0.0329,84410.0,84409.0,0.1184684]
[1742012920730,0.00177785,84412.0,84411.0,0.1184656]
[1742012921033,0.00177785,84412.0,84411.0,0.6384656]
[1742012921231,0.00177785,84412.0,84411.0,0.6284656]
[1742012921427,0.00177785,84412.0,84411.0,0.6833656]
[1742012921926,0.00177785,84412.0,84411.0,0.4233656]
[1742012922133,0.00177785,84412.0,84411.0,0.7033656]
[1742012922519,0.12024195,84412.0,84411.0,0.1833656]
[1742012922727,0.00177785,84412.0,84411.0,0.2970056]
[1742012923129,0.12024195,84412.0,84411.0,0.2645056]
[1742012923320,0.12024195,84412.0,84411.0,0.5145056]
[1742012923524,0.00177785,84412.0,84411.0,0.7745056]
[1742012923739,0.12024195,84412.0,84411.0,0.7745056]
[1742012924038,0.12024195,84412.0,84411.0,0.8065056]
[1742012924932,0.12024195,84412.0,84411.0,0.2965056]
[1742012925140,0.00177785,84412.0,84411.0,0.7665056]
[1742012925437,0.00177785,84412.0,84411.0,0.8065056]
[1742012925823,0.03197785,84412.0,84411.0,0.7665056]
[1742012926027,0.03197785,84412.0,84411.0,0.8165056]
[1742012926228,0.00177785,84412.0,84411.0,0.6165056]
[1742012927038,0.0316,84423.0,84419.0,0.1184543]
[1742012927236,0.0302,84422.0,84419.0,0.3584543]
[1742012927629,0.0302,84422.0,84419.0,0.1184543]
[1742012928030,0.0302,84422.0,84419.0,0.1814543]
[1742012928340,0.1486507,84422.0,84419.0,0.19350278]
[1742012928535,0.0302,84422.0,84419.0,0.19350278]
[1742012928839,0.1184516,84421.0,84419.0,0.19350278]
[1742012929240,0.03167776,84420.0,84419.0,0.19350278]
[1742012930240,0.06427776,84420.0,84419.0,0.19350278]
[1742012930637,0.06427776,84420.0,84419.0,0.25350278]
[1742012930942,0.06427776,84420.0,84419.0,0.19350278]
[1742012931531,0.03277776,84420.0,84419.0,0.33350278]
[1742012931737,0.03277776,84420.0,84419.0,0.51350278]
[1742012932044,0.0308,84428.0,84427.0,0.1184431]
[1742012932236,0.1492417,84428.0,84427.0,0.1184431]
[1742012932635,0.1492417,84428.0,84427.0,0.1488431]
[1742012933437,0.1492417,84428.0,84427.0,0.1817431]
[1742012933438,0.1804417,84428.0,84427.0,0.1817431]
[1742012933760,0.2121417,84428.0,84427.0,0.1817431]
[1742012935040,0.4821417,84428.0,84427.0,0.1817431]
[1742012935342,0.2121417,84428.0,84427.0,0.1817431]
[1742012937643,0.4621417,84428.0,84427.0,0.1817431]
[1742012937845,0.4721417,84428.0,84427.0,0.1817431]
[1742012938050,0.4821417,84428.0,84427.0,0.1817431]
[1742012938235,0.2121417,84428.0,84427.0,0.1817431]
[1742012939244,0.3221417,84428.0,84427.0,0.1817431]
[1742012939543,0.2121417,84428.0,84427.0,0.1817431]
[1742012939740,0.2121417,84428.0,84427.0,0.1488431]
[1742012939936,0.2121417,84428.0,84427.0,0.1184431]
[1742012940141,0.0592222,84426.0,84425.0,0.0324]
[1742012940441,0.1776667,84426.0,84425.0,0.0324]
[1742012940943,0.1776723,84424.0,84423.0,0.1184487]
[1742012941136,0.1184501,84422.0,84421.0,0.0328]
[1742012941629,0.1807501,84422.0,84421.0,0.0638]
[1742012941833,0.1807501,84422.0,84421.0,0.1822506]
[1742012942637,0.1807501,84422.0,84421.0,0.0638]
[1742012943141,0.1807501,84422.0,84421.0,0.1822515]
[1742012944949,0.1184571,84417.0,84416.0,0.3608]
[1742012945341,0.1184571,84417.0,84396.0,0.3608]